bitfinex-derivatives/quotes_SOLF0:USTF0_20251126
["timestamp","ask_amount","ask_price","bid_price","bid_amount"]
[1764167560977,3.06,136.6,136.55,2.3505485]
[1764167560978,3.06,136.64,136.56,2.24]
[1764167561181,3.06,136.64,136.52,2.24]
[1764167561390,3.05,136.63,136.52,2.24]
[1764167561572,3.05,136.61,136.52,2.24]
[1764167562077,0.05002375,136.58,136.55,0.05106138]
[1764167562478,3.10002375,136.58,136.55,0.05106138]
[1764167562676,128.12874113,136.67,136.55,2.29106138]
[1764167562677,3.05,136.67,136.55,2.29106138]
[1764167562983,105.5427,136.65,136.56,2.19]
[1764167563184,3.05,136.62,136.56,2.19]
[1764167563380,9.6406,136.61,136.56,2.19]
[1764167563882,0.05526329,136.6,136.57,0.04938719]
[1764167564972,0.05526329,136.6,136.57,2.23938719]
[1764167567682,0.05526329,136.6,136.58,2.19]
[1764167568678,3.05,136.7,136.61,2.13]
[1764167569374,3.05,136.7,136.64,2.13]
[1764167569584,3.05,136.73,136.64,2.13]
[1764167569776,0.04959718,136.7,136.67,0.05252926]
[1764167570778,3.05,136.77,136.67,2.18252926]
[1764167570977,28.53,136.8,136.69,2.08]
[1764167571192,3.05,136.79,136.71,2.08]
[1764167571688,3.05,136.82,136.73,2.08]
[1764167571881,3.05,136.82,136.69,102.4539]
[1764167571882,0.05117002,136.79,136.76,2.13213689]
[1764167572390,3.10117002,136.79,136.76,0.05213689]
[1764167574983,9.68327002,136.79,136.76,0.05213689]
[1764167576880,9.6325,136.78,136.76,0.05213689]
[1764167577691,3.05,136.77,136.76,0.05213689]
[1764167578093,3.05,136.76,136.69,8.6664]
[1764167578279,3.05,136.76,136.69,2.08]
[1764167578586,3.05,136.74,136.65,27.56]
[1764167578892,3.05,136.74,136.66,2.08]
[1764167579092,0.04673483,136.71,136.69,0.05095522]
[1764167579293,0.04673483,136.71,136.69,2.13095522]
[1764167579687,0.04673483,136.71,136.69,0.05095522]
[1764167579883,3.09673483,136.71,136.69,0.05095522]
[1764167580280,0.04673483,136.71,136.69,2.13095522]
[1764167580999,3.09673483,136.71,136.69,0.05095522]
[1764167581499,3.05,136.7,136.69,0.05095522]
[1764167581995,6.5878,136.67,136.61,2.08]
[1764167582892,0.05256757,136.65,136.63,0.05557409]
[1764167583395,0.05256757,136.65,136.63,2.18557409]
[1764167583595,3.05,136.72,136.63,2.18557409]
[1764167583891,3.05,136.69,136.6,2.13]
[1764167584096,3.05,136.68,136.6,2.13]
[1764167584594,0.04775323,136.65,136.6,2.13]
[1764167584897,3.09775323,136.65,136.63,0.0489849]
[1764167585792,6.63645323,136.65,136.63,0.0489849]
[1764167585988,0.04775323,136.65,136.63,0.0489849]
[1764167586190,3.17775323,136.65,136.63,0.0489849]
[1764167586390,0.04775323,136.65,136.63,0.0489849]
[1764167587296,3.17775323,136.65,136.63,0.0489849]
[1764167587996,3.13,136.64,136.56,2.13]
[1764167588403,3.13,136.68,136.6,6.5908]
[1764167588598,3.13,136.68,136.61,2.13]
[1764167589197,3.18516863,136.66,136.63,0.05072778]
[1764167590902,9.77336863,136.66,136.63,0.05072778]
[1764167591099,0.05516863,136.66,136.63,2.18072778]
[1764167591300,0.05516863,136.66,136.63,0.05072778]
[1764167591503,3.24516863,136.66,136.63,0.05072778]
[1764167593095,3.24516863,136.66,136.57,2.13]
[1764167593096,3.19,136.65,136.57,2.13]
[1764167593900,3.19,136.64,136.57,8.7221]
[1764167594101,3.23889726,136.62,136.59,0.05578736]
[1764167595496,3.19,136.61,136.49,109.74981748]
[1764167595701,3.19,136.61,136.51,2.19]
[1764167596298,3.19,136.6,136.52,2.19]
[1764167596498,3.24280647,136.57,136.55,0.0495263]
[1764167596698,9.83618753,136.57,136.55,0.0495263]
[1764167597203,3.19,136.56,136.55,0.0495263]
[1764167597404,9.7832,136.56,136.48,8.7865]
[1764167597610,3.19,136.53,136.44,313.59496695]
[1764167597905,3.19,136.52,136.44,313.59496695]
[1764167598208,3.19,136.52,136.44,320.19336695]
[1764167598506,3.24359267,136.49,136.47,0.0489869]
[1764167599311,0.05359267,136.49,136.47,0.0489869]
[1764167600808,0.05359267,136.49,136.47,2.2389869]
[1764167601206,0.05359267,136.49,136.47,0.0489869]
[1764167602612,3.24359267,136.49,136.47,0.0489869]
[1764167603603,0.05359267,136.49,136.47,0.0489869]
[1764167604009,3.24359267,136.49,136.47,0.0489869]
[1764167604724,0.05359267,136.49,136.47,0.0489869]
[1764167605315,3.19,136.48,136.41,6.5998]
[1764167605615,3.19,136.48,136.41,2.19]
[1764167606214,3.19,136.48,136.4,6.6004]
[1764167606414,3.24054047,136.45,136.42,0.0487151]
[1764167606714,0.05228363,136.45,136.42,0.04842934]
[1764167608009,0.05228363,136.45,136.42,6.64792934]
[1764167608213,0.05228363,136.45,136.42,0.04842934]
[1764167609214,3.24228363,136.45,136.42,0.04842934]
[1764167609420,3.24228363,136.45,136.36,25.46]
[1764167609605,3.19,136.45,136.36,25.46]
[1764167609811,3.19,136.43,136.35,8.7927]
[1764167610118,3.19,136.43,136.35,2.19]
[1764167610420,0.04853529,136.4,136.38,0.04779938]
[1764167610916,0.04853529,136.4,136.38,2.27779938]
[1764167611213,3.19,136.46,136.39,2.23]
[1764167612221,0.04758693,136.44,136.41,2.28389759]
[1764167612417,0.04758693,136.44,136.41,8.88399759]
[1764167613120,0.04758693,136.44,136.41,0.05389759]
[1764167613716,3.23758693,136.44,136.41,0.05389759]
[1764167614809,3.23758693,136.44,136.35,2.23]
[1764167615010,3.19,136.44,136.35,2.23]
[1764167615925,0.04883604,136.41,136.38,0.04676461]
[1764167617727,3.23883604,136.41,136.38,0.04676461]
[1764167617928,3.19,136.39,136.38,0.04676461]
[1764167618119,3.19,136.39,136.32,8.8342]
[1764167618426,9.7913,136.39,136.32,8.8342]
[1764167618821,9.7913,136.39,136.32,2.23]
[1764167619120,0.05360877,136.37,136.34,0.05137515]
[1764167621115,3.17360877,136.37,136.34,0.05137515]
[1764167623724,0.05360877,136.37,136.34,0.05137515]
[1764167625330,0.05360877,136.37,136.34,6.65487515]
[1764167625531,0.05360877,136.37,136.34,0.05137515]
[1764167626734,3.17360877,136.37,136.34,0.05137515]
[1764167627432,3.12,136.36,136.34,0.05137515]
[1764167627741,3.12,136.36,136.31,8.8448]
[1764167627920,3.12,136.36,136.21,330.3661]
[1764167627921,3.12,136.28,136.21,2.24]
[1764167628635,3.17110034,136.26,136.21,2.24]
[1764167629937,3.12,136.24,136.17,3.07]
[1764167630128,0.05551338,136.23,136.17,3.07]
[1764167630331,3.12,136.21,136.13,3.07]
[1764167630630,3.12,136.21,136.1,3.07]
[1764167630631,3.16797008,136.18,136.1,3.07]
[1764167630832,9.7319,136.17,136.1,3.07]
[1764167631036,3.1722355,136.15,136.06,3.07]
[1764167631341,0.05174764,136.12,136.06,3.07]
[1764167631527,0.05174764,136.12,136.08,3.07]
[1764167633043,3.17174764,136.12,136.05,3.07]
[1764167634743,0.05174764,136.12,136.05,3.07]
[1764167635034,3.17174764,136.12,136.05,3.07]
[1764167636338,0.05174764,136.12,136.06,3.07]
[1764167636534,0.05174764,136.12,136.08,3.07]
[1764167637338,0.05174764,136.12,136.09,3.07]
[1764167640543,0.05174764,136.12,136.04,3.07]
[1764167640544,3.17174764,136.12,136.04,3.07]
[1764167640730,3.12,136.11,136.01,1.27875358]
[1764167640935,3.12,136.11,136.0,3.07]
[1764167641136,0.05223782,136.07,136.0,3.07]
[1764167641328,3.17223782,136.07,136.0,3.07]
[1764167641532,3.17223782,136.07,135.96,3.07]
[1764167641837,3.17318147,136.03,135.96,3.07]
[1764167642532,0.05318147,136.03,135.98,106.0634]
[1764167642738,0.05318147,136.03,135.99,3.07]
[1764167643045,0.05318147,136.03,135.99,106.0537]
[1764167643340,0.05318147,136.03,136.0,3.07]
[1764167643944,0.05318147,136.03,135.99,102.9837]
[1764167643945,0.05318147,136.03,136.02,3.07]
[1764167644335,0.05318147,136.03,135.98,3.07]
[1764167644645,0.05318147,136.03,135.92,103.0339]
[1764167644646,3.17318147,136.03,135.93,3.07]
[1764167644941,0.04675627,135.99,135.95,3.07]
[1764167645131,0.04675627,135.99,135.96,3.1]
[1764167645442,0.04675627,135.99,135.97,3.1]
[1764167646143,0.04675627,135.99,135.96,3.1]
[1764167646936,0.04675627,135.99,135.92,131.837]
[1764167647138,2.98675627,135.99,135.92,28.8]
[1764167647840,2.98675627,135.99,135.92,35.4236]
[1764167648741,2.98675627,135.99,135.93,6.6232]
[1764167649141,0.04675627,135.99,135.93,106.128]
[1764167649337,0.04675627,135.99,135.96,3.1]
[1764167649934,0.04675627,135.99,135.97,6.6213]
[1764167650138,0.04675627,135.99,135.97,9.7213]
[1764167650341,2.94,136.07,135.98,3.1]
[1764167650547,2.94,136.07,135.99,6.6204]
[1764167650731,2.94,136.07,135.98,3.1]
[1764167651443,0.04750115,136.04,136.01,0.04816776]
[1764167651643,0.04750115,136.04,136.01,3.12816776]
[1764167652341,0.04750115,136.04,136.01,0.04816776]
[1764167654652,0.04750115,136.04,136.01,3.12816776]
[1764167654854,2.93,136.11,136.03,3.08]
[1764167655346,2.93,136.11,136.04,3.08]
[1764167655547,2.93,136.11,136.05,3.08]
[1764167655948,2.97860001,136.09,136.07,0.05271321]
[1764167656254,2.98479075,136.09,136.07,0.05619818]
[1764167656645,0.05479075,136.09,136.07,0.05619818]
[1764167657957,2.98479075,136.09,136.07,0.05619818]
[1764167658360,0.05479075,136.09,136.07,3.13619818]
[1764167658863,0.05479075,136.09,136.07,0.05619818]
[1764167661471,2.98479075,136.09,136.07,0.05619818]
[1764167662265,2.93,136.08,136.0,3.08]
[1764167662468,2.93,136.07,135.97,131.7581]
[1764167662668,9.547,136.07,135.99,6.6203]
[1764167662857,9.547,136.07,135.99,9.7003]
[1764167663061,2.93,136.07,135.99,3.08]
[1764167663670,0.04709472,136.04,136.02,0.03947073]
[1764167663870,2.97709472,136.04,136.02,0.03947073]
[1764167664762,9.59529472,136.04,136.02,0.03947073]
[1764167664965,2.93,136.03,136.02,0.03947073]
[1764167665164,0.04709472,136.04,136.02,0.03947073]
[1764167665362,2.97709472,136.04,136.02,0.03947073]
[1764167665873,0.04709472,136.04,136.02,3.11947073]
[1764167666769,0.04709472,136.04,136.02,9.73847073]
[1764167666972,0.04709472,136.04,136.02,3.11947073]
[1764167667971,0.04709472,136.04,136.02,0.03947073]
[1764167668974,0.04709472,136.04,136.02,3.11947073]
[1764167670678,0.04709472,136.04,136.02,9.73847073]
[1764167671077,0.04709472,136.04,136.03,3.08]
[1764167671580,2.93,136.11,136.05,3.08]
[1764167672264,2.93,136.11,136.06,9.697]
[1764167672470,0.05345145,136.1,136.07,3.13480715]
[1764167672870,2.93,136.19,136.09,3.08]
[1764167673583,6.6119,136.17,136.1,6.615]
[1764167673769,2.93,136.17,136.12,0.05643992]
[1764167673973,2.93,136.14,136.12,0.05643992]
[1764167674174,0.05535907,136.15,136.12,0.05643992]
[1764167674576,2.98535907,136.15,136.12,0.05643992]
[1764167675073,2.93,136.14,136.07,25.66]
[1764167675777,6.6131,136.15,136.08,3.08]
[1764167676178,0.05044952,136.13,136.1,3.12768639]
[1764167677576,2.98044952,136.13,136.1,0.04768639]
[1764167677970,0.05044952,136.13,136.1,0.04768639]
[1764167678280,0.05044952,136.13,136.1,3.12768639]
[1764167679679,0.05044952,136.13,136.11,3.08]
[1764167681378,0.05044952,136.13,136.1,0.04768639]
[1764167681576,3.07044952,136.13,136.1,0.04768639]
[1764167681776,0.05044952,136.13,136.1,2.94768639]
[1764167682979,9.631,136.19,136.12,2.9]
[1764167683286,9.631,136.19,136.05,102.9384]
[1764167683287,105.8688,136.18,136.08,2.9]
[1764167683585,3.02,136.13,136.05,2.9]
[1764167683982,0.05457809,136.1,136.08,0.04864708]
[1764167686487,6.66987809,136.1,136.08,0.04864708]
[1764167686687,9.68987809,136.1,136.08,0.04864708]
[1764167687785,0.05457809,136.1,136.08,2.94864708]
[1764167688686,9.6325,136.16,136.09,2.9]
[1764167688892,3.02,136.16,136.09,2.9]
[1764167689187,6.6129,136.15,136.09,9.5155]
[1764167689486,3.02,136.16,136.09,2.9]
[1764167689689,0.05115366,136.14,136.11,2.95540997]
[1764167698788,0.05115366,136.14,136.13,2.9]
[1764167700292,3.02,136.23,136.13,2.9]
[1764167700483,3.02,136.23,136.14,2.9]
[1764167700684,3.02,136.27,136.17,2.9]
[1764167700886,3.02,136.22,136.13,2.9]
[1764167701184,3.02,136.22,136.16,0.05572609]
[1764167701492,0.05594239,136.19,136.16,2.95572609]
[1764167701796,6.6079,136.25,136.18,2.9]
[1764167702292,3.02,136.26,136.18,9.5112]
[1764167702590,3.06774741,136.23,136.21,0.05451149]
[1764167702795,3.06774741,136.23,136.11,2.9]
[1764167702796,3.02,136.2,136.11,2.9]
[1764167702998,3.02,136.19,136.11,2.9]
[1764167703294,3.02,136.19,136.12,2.9]
[1764167703997,0.04633036,136.17,136.14,0.05586625]
[1764167704192,0.04633036,136.17,136.14,2.95586625]
[1764167705591,3.06,136.24,136.14,2.95586625]
[1764167705894,3.06,136.24,136.14,2.9]
[1764167706196,3.06,136.24,136.18,3.05]
[1764167706396,3.06,136.27,136.18,3.05]
[1764167706595,6.6076,136.26,136.2,3.05]
[1764167706898,0.04669947,136.24,136.22,3.05]
[1764167707895,0.04669947,136.24,136.21,3.09722219]
[1764167708992,3.06,136.31,136.21,3.09722219]
[1764167709298,3.06,136.31,136.24,3.05]
[1764167709493,6.6048,136.32,136.24,3.05]
[1764167709904,6.6048,136.32,136.26,3.05]
[1764167710097,0.05146274,136.3,136.28,3.10264603]
[1764167710495,3.06,136.38,136.28,3.10264603]
[1764167710697,3.06,136.38,136.28,3.05]
[1764167711402,3.06,136.38,136.3,3.05]
[1764167711600,0.05184747,136.35,136.33,3.10558651]
[1764167712802,3.20184747,136.35,136.33,0.05558651]
[1764167713705,9.80524747,136.35,136.33,0.05558651]
[1764167714005,3.15,136.34,136.33,0.05558651]
[1764167714889,3.15,136.31,136.22,3.05]
[1764167715289,3.15,136.35,136.25,3.05]
[1764167715496,6.6036,136.34,136.26,3.05]
[1764167715692,3.15,136.39,136.26,3.05]
[1764167716004,0.05017187,136.34,136.31,0.05238343]
[1764167717103,3.15,136.33,136.31,0.05238343]
[1764167717506,3.15,136.28,136.21,9.6597]
[1764167717802,3.15,136.28,136.22,3.05]
[1764167718191,9.7567,136.28,136.22,3.05]
[1764167718393,0.05017088,136.26,136.24,0.05136686]
[1764167719704,0.05017088,136.26,136.24,3.10136686]
[1764167719894,3.15,136.33,136.24,3.10136686]
[1764167720093,6.6047,136.32,136.24,3.05]
[1764167720293,3.15,136.31,136.24,3.05]
[1764167720494,6.6061,136.29,136.24,3.05]
[1764167720694,9.7561,136.29,136.24,3.05]
[1764167720897,0.05487391,136.28,136.25,3.10444387]
[1764167722299,3.15,136.36,136.26,3.05]
[1764167722499,9.7542,136.33,136.26,3.05]
[1764167722693,3.15,136.33,136.26,3.05]
[1764167723100,6.6047,136.32,136.26,3.05]
[1764167723295,0.05585743,136.3,136.28,0.04764304]
[1764167723806,3.20585743,136.3,136.28,0.04764304]
[1764167724009,0.05585743,136.3,136.28,0.04764304]
[1764167724406,3.20585743,136.3,136.28,0.04764304]
[1764167724609,3.15,136.29,136.21,3.05]
[1764167725203,6.6068,136.28,136.21,9.6597]
[1764167725607,0.04759007,136.26,136.23,0.05433585]
[1764167725814,9.80509007,136.26,136.23,0.05433585]
[1764167726205,3.19759007,136.26,136.23,0.05433585]
[1764167727615,3.15,136.25,136.23,0.05433585]
[1764167728015,3.19759007,136.26,136.23,0.05433585]
[1764167728406,0.04759007,136.26,136.23,0.05433585]
[1764167728606,3.19759007,136.26,136.23,0.05433585]
[1764167729517,0.04759007,136.26,136.23,3.10433585]
[1764167731011,3.19759007,136.26,136.23,0.05433585]
[1764167731424,3.15,136.25,136.16,25.56]
[1764167731716,6.609,136.23,136.16,25.56]
[1764167731906,3.15,136.25,136.18,3.05]
[1764167732316,0.05371426,136.23,136.2,0.05001167]
[1764167732511,0.05371426,136.23,136.2,3.10001167]
[1764167733307,0.05371426,136.23,136.21,3.05]
[1764167735224,0.05371426,136.23,136.21,9.6598]
[1764167735408,3.15,136.31,136.23,3.05]
[1764167735614,3.15,136.34,136.23,3.05]
[1764167735920,3.15,136.34,136.22,135.55961989]
[1764167735921,6.6047,136.32,136.25,3.05]
[1764167736107,3.15,136.33,136.25,3.05]
[1764167736313,3.15,136.29,136.28,0.05389359]
[1764167736712,6.65191377,136.3,136.28,0.05389359]
[1764167736907,0.04631377,136.3,136.28,3.10389359]
[1764167738414,0.04631377,136.3,136.29,3.05]
[1764167739011,3.15,136.39,136.29,3.05]
[1764167739213,3.15,136.39,136.32,3.05]
[1764167739615,3.15,136.39,136.3,25.56]
[1764167740223,3.20278703,136.36,136.33,0.05193043]
[1764167741023,9.80548703,136.36,136.33,0.05193043]
[1764167741223,0.05278703,136.36,136.33,3.08193043]
[1764167741722,3.20278703,136.36,136.33,0.05193043]
[1764167742219,105.91488703,136.36,136.33,0.05193043]
[1764167742420,3.15,136.35,136.3,25.56]
[1764167743325,3.15,136.35,136.31,0.05070946]
[1764167745312,6.65548703,136.36,136.31,3.08070946]
[1764167745621,0.05278703,136.36,136.31,3.08070946]
[1764167745821,3.20278703,136.36,136.31,3.08070946]
[1764167746123,0.05278703,136.36,136.31,3.08070946]
[1764167746427,0.05278703,136.36,136.32,3.03]
[1764167746627,0.05278703,136.36,136.35,3.03]
[1764167747220,3.20278703,136.36,136.34,0.04665363]
[1764167747815,0.05278703,136.36,136.34,3.07665363]
[1764167750832,0.05278703,136.36,136.34,9.68005363]
[1764167751132,0.05278703,136.36,136.35,3.03]
[1764167751330,6.6002,136.41,136.35,3.03]
[1764167751927,6.6008,136.4,136.35,3.03]
[1764167752534,0.05165818,136.39,136.36,0.05094056]
[1764167752725,3.20165818,136.39,136.36,0.05094056]
[1764167753232,9.80285818,136.39,136.36,0.05094056]
[1764167753535,3.15,136.38,136.36,0.05094056]
[1764167753736,9.7517,136.38,136.36,0.05094056]
[1764167753928,3.15,136.37,136.36,0.05094056]
[1764167754428,3.15,136.46,136.38,9.6316]
[1764167754617,3.15,136.46,136.39,3.03]
[1764167755036,3.15,136.49,136.4,3.03]
[1764167755424,0.05594954,136.46,136.43,0.05635455]
[1764167755825,3.20594954,136.46,136.43,0.05635455]
[1764167760637,0.05594954,136.46,136.43,3.08635455]
[1764167760822,0.05594954,136.46,136.44,3.03]
[1764167761028,3.20594954,136.46,136.43,0.05635455]
[1764167761224,3.15,136.44,136.43,0.05635455]
[1764167761637,3.20594954,136.46,136.43,0.05635455]
[1764167761934,105.7908,136.45,136.35,3.03]
[1764167762236,3.15,136.44,136.35,3.03]
[1764167762431,3.15,136.44,136.36,3.03]
[1764167762737,3.15,136.47,136.38,3.03]
[1764167762931,9.7474,136.47,136.41,0.0464614]
[1764167763130,0.05431914,136.44,136.41,3.0764614]
[1764167764237,102.6067,136.5,136.41,3.0764614]
[1764167764238,3.15,136.51,136.41,3.0764614]
[1764167764534,9.746,136.5,136.41,28.57]
[1764167764731,9.746,136.5,136.38,3.03]
[1764167764732,3.15,136.47,136.38,3.03]
[1764167764932,3.15,136.47,136.4,3.03]
[1764167765331,2.99258192,136.45,136.42,0.0537864]
[1764167765735,0.05258192,136.45,136.42,3.0537864]
[1764167766733,0.05258192,136.45,136.44,3.0]
[1764167767431,0.05258192,136.45,136.42,28.5937864]
[1764167767840,0.05258192,136.45,136.43,3.0]
[1764167768041,0.05258192,136.45,136.43,9.5991]
[1764167768241,0.05258192,136.45,136.44,3.0]
[1764167770732,2.94,136.51,136.45,3.0]
[1764167771750,0.04941602,136.49,136.47,0.04648003]
[1764167772244,3.1,136.58,136.48,2.97]
[1764167772636,9.6931,136.56,136.49,6.5959]
[1764167773345,0.05213402,136.54,136.51,0.04760536]
[1764167773742,0.05213402,136.54,136.51,3.01760536]
[1764167774338,3.1,136.61,136.52,2.97]
[1764167774535,3.1,136.61,136.54,2.97]
[1764167774746,3.1,136.65,136.54,2.97]
[1764167775138,6.5893,136.64,136.54,9.5636]
[1764167775344,3.1487081,136.6,136.58,0.04704951]
[1764167775845,3.1,136.59,136.51,2.97]
[1764167776240,3.1,136.58,136.51,2.97]
[1764167776946,0.05248341,136.56,136.53,3.02214724]
[1764167778649,0.05248341,136.56,136.53,0.05214724]
[1764167778952,3.15248341,136.56,136.53,0.05214724]
[1764167779147,3.1,136.55,136.53,0.05214724]
[1764167779542,3.1,136.54,136.53,0.05214724]
[1764167780146,3.15248341,136.56,136.53,0.05214724]
[1764167780656,6.5948,136.52,136.44,2.97]
[1764167781152,3.1,136.52,136.44,2.97]
[1764167781538,3.1,136.51,136.44,2.97]
[1764167781742,105.7606806,136.49,136.46,0.05454441]
[1764167781944,6.5984,136.45,136.4,2.97]
[1764167782144,3.1,136.44,136.34,2.97]
[1764167782650,3.1,136.44,136.35,2.97]
[1764167782841,3.1,136.42,136.33,25.5]
[1764167783045,3.15055765,136.39,136.36,0.0562311]
[1764167783650,3.15055765,136.39,136.28,2.97]
[1764167783651,3.1,136.38,136.28,2.97]
[1764167783848,3.1,136.37,136.28,2.97]
[1764167784049,3.1,136.37,136.29,2.97]
[1764167784759,0.05389,136.34,136.32,0.05373233]
[1764167784945,0.05092783,136.34,136.32,0.05373233]
[1764167785351,3.15092783,136.34,136.32,0.05373233]
[1764167786055,0.05092783,136.34,136.32,0.05373233]
[1764167786356,3.15092783,136.34,136.32,0.05373233]
[1764167786557,3.1,136.33,136.27,25.5]
[1764167786748,3.1,136.32,136.22,2.97]
[1764167787057,3.1,136.36,136.25,2.97]
[1764167787354,3.1,136.36,136.27,2.97]
[1764167787557,0.05654953,136.33,136.3,0.05348763]
[1764167788063,0.05654953,136.33,136.3,3.02348763]
[1764167788256,3.1,136.39,136.3,3.02348763]
[1764167788568,3.1,136.39,136.31,2.97]
[1764167789261,0.04950778,136.36,136.34,0.05091152]
[1764167789458,0.04950778,136.36,136.34,3.02091152]
[1764167789959,0.04950778,136.36,136.34,0.05091152]
[1764167790151,3.14950778,136.36,136.34,0.05091152]
[1764167790352,3.1,136.35,136.26,2.97]
[1764167790558,3.1,136.34,136.26,2.97]
[1764167791251,0.0486079,136.31,136.29,0.05353653]
[1764167791653,3.1486079,136.31,136.29,0.05353653]
[1764167791956,3.1,136.3,136.21,6.6098]
[1764167792158,3.1,136.3,136.21,9.5798]
[1764167792457,128.2669,136.34,136.25,2.97]
[1764167792458,3.1,136.34,136.25,2.97]
[1764167792661,3.1,136.34,136.26,2.97]
[1764167792852,3.1,136.38,136.3,105.7193]
[1764167793046,3.1,136.38,136.31,105.7115]
[1764167793860,0.05053848,136.36,136.33,0.05322247]
[1764167794059,3.15053848,136.36,136.33,0.05322247]
[1764167794851,0.05053848,136.36,136.33,0.05322247]
[1764167795848,3.15053848,136.36,136.33,0.05322247]
[1764167797763,3.15053848,136.36,136.27,32.1467]
[1764167797956,6.6032,136.35,136.27,32.1467]
[1764167798162,3.1,136.34,136.28,6.6063]
[1764167798455,3.1,136.34,136.27,25.54]
[1764167798656,3.14789996,136.32,136.29,0.04822158]
[1764167799562,0.04789996,136.32,136.29,0.04822158]
[1764167800064,0.04789996,136.32,136.29,3.01822158]
[1764167800364,0.04789996,136.32,136.31,2.97]
[1764167800558,0.04789996,136.32,136.29,0.04822158]
[1764167800760,0.04789996,136.32,136.29,3.01822158]
[1764167800957,0.04789996,136.32,136.31,2.97]
[1764167801262,0.04789996,136.32,136.3,9.5753]
[1764167801657,0.04789996,136.32,136.31,2.97]
[1764167801852,2.9,136.39,136.32,6.6043]
[1764167802161,2.9,136.39,136.31,2.97]
[1764167802355,6.6018,136.38,136.31,2.97]
[1764167802562,2.9,136.39,136.31,2.97]
[1764167802760,2.9,136.35,136.34,0.00434547]
[1764167802963,2.9,136.35,136.29,6.6058]
[1764167803163,2.9,136.35,136.27,131.282]
[1764167803366,2.9,136.34,136.28,6.6061]
[1764167803552,2.9,136.34,136.27,25.54]
[1764167803861,2.9,136.31,136.29,0.05292003]
[1764167804055,0.05322745,136.32,136.29,0.05292003]
[1764167804661,2.95322745,136.32,136.29,0.05292003]
[1764167806366,0.05322745,136.32,136.29,3.02292003]
[1764167806763,0.05322745,136.32,136.3,6.6054]
[1764167806965,0.05322745,136.32,136.29,3.02292003]
[1764167807464,0.05322745,136.32,136.29,0.05292003]
[1764167807658,0.05322745,136.32,136.3,6.6054]
[1764167808763,0.05322745,136.32,136.31,2.97]
[1764167809360,2.9,136.39,136.31,107.1741]
[1764167809561,2.9,136.39,136.31,105.7141]
[1764167809767,2.9,136.39,136.31,2.97]
[1764167809963,2.9,136.39,136.31,105.7123]
[1764167810255,2.9,136.39,136.34,0.04873562]
[1764167810461,0.04797148,136.36,136.34,6.65223562]
[1764167810657,0.04797148,136.36,136.34,0.04873562]
[1764167811262,0.04797148,136.36,136.34,6.65213562]
[1764167811570,0.04797148,136.36,136.34,0.04873562]
[1764167811970,0.04797148,136.36,136.34,6.65223562]
[1764167812171,0.04797148,136.36,136.34,3.01873562]
[1764167812569,0.04797148,136.36,136.34,9.62213562]
[1764167813677,0.04797148,136.36,136.35,2.97]
[1764167814069,2.9,136.43,136.35,2.97]
[1764167814772,2.9,136.4,136.33,25.5]
[1764167815169,0.04693667,136.38,136.35,0.05174037]
[1764167815573,2.94693667,136.38,136.35,0.05174037]
[1764167817375,0.04693667,136.38,136.35,0.05174037]
[1764167817883,0.04693667,136.38,136.35,3.02174037]
[1764167818587,0.04693667,136.38,136.35,0.05174037]
[1764167819776,2.9,136.45,136.36,25.5]
[1764167819973,105.5185,136.48,136.37,2.97]
[1764167820168,6.5987,136.44,136.38,9.5712]
[1764167820478,6.5987,136.44,136.38,2.97]
[1764167820776,7.16992128,136.49,136.4,0.04997434]
[1764167820777,9.4979,136.46,136.4,0.04997434]
[1764167820968,2.9,136.46,136.38,2.97]
[1764167821174,2.95643505,136.44,136.42,0.05304181]
[1764167821474,9.55523505,136.44,136.42,0.05304181]